Workbook

Sheet Veiledning
G1: VEILEDNING | H1: INNTEKTER
B2: PERSONLIG KONTANTSTRØM
B3: Denne arbeidsboken har regneark for årlig, månedlig og daglig kontantstrøm. Velg kontantstrømtypen som fungerer best for deg, eller bruk dem alle til å få innsikt i din personlig kontantstrøm.
B5: Årlig kontantstrøm | D5: Månedlig kontantstrøm | F5: Daglig kontantstrøm
B6: Skriv inn et årlig kontantstrømbeløp over ulike områder. Se månedlig analyse og sammenligninger og den viktige sluttsummen både per år og måned. | D6: Skriv inn den månedlige kontantstrømmen du erfarer, eller beregn de gjenstående månedene for å se den forventede kontantstrømmen per måned resten av året. | F6: Skriv inn en estimert daglig kontantstrøm, og se gjennom estimert totalbeløp per måned og år. Bruk dette til å få en oversikt over hvordan dine daglige utgifter vil se ut i løpet av en måned eller et år.

Sheet Årlig kontantstrøm
B1: PERSONLIG KONTANTSTRØM | G1: VEILEDNING | H1: ÅRLIG KONTANTSTRØM | J1: MÅNEDLIG KONTANTSTRØM
B2: Total kontantstrøm hittil: | D2: =AnnualCashFlowToDate -> kr 39,750.00 | G2: Dette er et årlig estimat. Bruk dette regnearket hvis du vil vise årlige beløp med beregnede månedlige verdier. Bruk andre regneark til å legge til daglig elementer.
B3: INNTEKTSSAMMENDRAG | F3: SAMMENDRAG AV UTGIFTER | J3: SAMMENDRAG AV VILKÅRLIGE UTGIFTER | N3: SAMMENDRAG AV SPARING
B4: Totalt årlig: | C4: =Inntekter!C10 -> kr 125,000.00 | F4: Totalt årlig: | G4: =Utgifter[[#Totals],[Årlig ]] -> kr 49,000.00 | J4: Totalt årlig: | K4: =Vilkårlig[[#Totals],[Årlig ]] -> kr 13,250.00 | N4: Totalt årlig: | O4: =Sparing[[#Totals],[Årlig ]] -> kr 23,000.00
B5: Du finner sektordiagram som viser inntekter fra forskjellige kilder, i denne cellen. | F5: Du finner sektordiagram som viser påløpte utgifter, i denne cellen. | J5: Du finner sektordiagram som viser vilkårlige utgifter, i denne cellen. | N5: Du finner sektordiagram som viser sparing og investeringer, i denne cellen.
B6: Totalt månedlig: | C6: =Inntekter!D10 -> kr 10,416.67 | F6: Totalt månedlig: | G6: =Utgifter[[#Totals],[Månedlig ]] -> kr 4,083.33 | J6: Totalt månedlig: | K6: =Vilkårlig[[#Totals],[Månedlig ]] -> kr 1,104.17 | N6: Totalt månedlig: | O6: =Sparing!D9 -> kr 1,916.67

Sheet Månedlig kontantstrøm
B1: PERSONLIG KONTANTSTRØM | H1: VEILEDNING | I1: ÅRLIG KONTANTSTRØM | J1: MÅNEDLIG KONTANTSTRØM | K1: DAGLIG SAMMENDRAG
B2: Total månedlig kontantstrøm: | D2: =MonthlyCashFlowToDate -> kr 18,380.00 | F2: OBS! Beregn det månedlige beløpet for daglige elementer, og plasser denne verdien i den aktuelle månedskolonnen.
B3: Type | C3: Beskrivelse | D3: Jan. | E3: Feb. | F3: Mars | G3: April | H3: Mai | I3: Juni | J3: Juli | K3: Aug. | L3: Sep. | M3: Okt. | N3: Nov. | O3: Des. | P3: Totalt
B4: Inntekter | C4: Lønn | D4: kr 7,500.00 | E4: kr 7,500.00 | F4: kr 7,500.00 | G4: kr 7,500.00 | H4: kr 7,500.00 | I4: kr 7,500.00 | P4: =SUM(Månedlig[[#This Row],[Jan.]:[Des.]]) -> kr 45,000.00
B5: Inntekter | C5: Provisjon/bonus | D5: kr 400.00 | E5: kr 400.00 | F5: kr 500.00 | G5: kr 200.00 | H5: kr 0.00 | I5: kr 600.00 | P5: =SUM(Månedlig[[#This Row],[Jan.]:[Des.]]) -> kr 2,100.00
B6: Inntekter | C6: Annet 1 | D6: kr 2,500.00 | E6: kr 2,500.00 | F6: kr 2,500.00 | G6: kr 2,500.00 | H6: kr 2,500.00 | I6: kr 2,500.00 | P6: =SUM(Månedlig[[#This Row],[Jan.]:[Des.]]) -> kr 15,000.00
B7: Inntekter | C7: Annet 2 | D7: kr 0.00 | E7: kr 0.00 | F7: kr 0.00 | G7: kr 0.00 | H7: kr 0.00 | I7: kr 0.00 | P7: =SUM(Månedlig[[#This Row],[Jan.]:[Des.]]) -> kr 0.00
B8: Inntekter | C8: Annet 3 | D8: kr 0.00 | E8: kr 0.00 | F8: kr 0.00 | G8: kr 0.00 | H8: kr 0.00 | I8: kr 0.00 | P8: =SUM(Månedlig[[#This Row],[Jan.]:[Des.]]) -> kr 0.00
B9: Inntekter | C9: Annet 4 | D9: kr 0.00 | E9: kr 0.00 | F9: kr 0.00 | G9: kr 0.00 | H9: kr 0.00 | I9: kr 0.00 | P9: =SUM(Månedlig[[#This Row],[Jan.]:[Des.]]) -> kr 0.00
B10: Utgifter | C10: Helseforsikring | D10: kr 1,250.00 | E10: kr 1,250.00 | F10: kr 1,250.00 | G10: kr 1,250.00 | H10: kr 1,250.00 | I10: kr 1,250.00 | P10: =SUM(Månedlig[[#This Row],[Jan.]:[Des.]]) -> kr 7,500.00
B11: Utgifter | C11: Inntektsskatt | D11: kr 208.33 | E11: kr 208.33 | F11: kr 208.33 | G11: kr 208.33 | H11: kr 208.33 | I11: kr 208.33 | P11: =SUM(Månedlig[[#This Row],[Jan.]:[Des.]]) -> kr 1,250.00
B12: Utgifter | C12: Skatt/avgifter for bil | D12: kr 16.67 | E12: kr 16.67 | F12: kr 16.67 | G12: kr 16.67 | H12: kr 16.67 | I12: kr 16.67 | P12: =SUM(Månedlig[[#This Row],[Jan.]:[Des.]]) -> kr 100.00
B13: Utgifter | C13: Billån | D13: kr 333.33 | E13: kr 333.33 | F13: kr 333.33 | G13: kr 333.33 | H13: kr 333.33 | I13: kr 333.33 | P13: =SUM(Månedlig[[#This Row],[Jan.]:[Des.]]) -> kr 2,000.00
B14: Utgifter | C14: Huslån/leie | D14: kr 1,250.00 | E14: kr 1,250.00 | F14: kr 1,250.00 | G14: kr 1,250.00 | H14: kr 1,250.00 | I14: kr 1,250.00 | P14: =SUM(Månedlig[[#This Row],[Jan.]:[Des.]]) -> kr 7,500.00
B15: Utgifter | C15: Forsikring | D15: kr 25.00 | E15: kr 25.00 | F15: kr 25.00 | G15: kr 25.00 | H15: kr 25.00 | I15: kr 25.00 | P15: =SUM(Månedlig[[#This Row],[Jan.]:[Des.]]) -> kr 150.00
B16: Utgifter | C16: Strøm | D16: kr 100.00 | E16: kr 100.00 | F16: kr 100.00 | G16: kr 100.00 | H16: kr 100.00 | I16: kr 100.00 | P16: =SUM(Månedlig[[#This Row],[Jan.]:[Des.]]) -> kr 600.00
B17: Utgifter | C17: Gass | D17: kr 50.00 | E17: kr 50.00 | F17: kr 50.00 | G17: kr 50.00 | H17: kr 50.00 | I17: kr 50.00 | P17: =SUM(Månedlig[[#This Row],[Jan.]:[Des.]]) -> kr 300.00
B18: Utgifter | C18: Vann | D18: kr 50.00 | E18: kr 50.00 | F18: kr 50.00 | G18: kr 50.00 | H18: kr 50.00 | I18: kr 50.00 | P18: =SUM(Månedlig[[#This Row],[Jan.]:[Des.]]) -> kr 300.00
B19: Utgifter | C19: Kloakk | D19: kr 25.00 | E19: kr 25.00 | F19: kr 25.00 | G19: kr 25.00 | H19: kr 25.00 | I19: kr 25.00 | P19: =SUM(Månedlig[[#This Row],[Jan.]:[Des.]]) -> kr 150.00
B20: Utgifter | C20: Søppel | D20: kr 12.50 | E20: kr 12.50 | F20: kr 12.50 | G20: kr 12.50 | H20: kr 12.50 | I20: kr 12.50 | P20: =SUM(Månedlig[[#This Row],[Jan.]:[Des.]]) -> kr 75.00
B21: Utgifter | C21: Telefon | D21: kr 50.00 | E21: kr 50.00 | F21: kr 50.00 | G21: kr 50.00 | H21: kr 50.00 | I21: kr 50.00 | P21: =SUM(Månedlig[[#This Row],[Jan.]:[Des.]]) -> kr 300.00
B22: Utgifter | C22: Internett | D22: kr 50.00 | E22: kr 50.00 | F22: kr 50.00 | G22: kr 50.00 | H22: kr 50.00 | I22: kr 50.00 | P22: =SUM(Månedlig[[#This Row],[Jan.]:[Des.]]) -> kr 300.00
B23: Utgifter | C23: Livsforsikring | D23: kr 125.00 | E23: kr 125.00 | F23: kr 125.00 | G23: kr 125.00 | H23: kr 125.00 | I23: kr 125.00 | P23: =SUM(Månedlig[[#This Row],[Jan.]:[Des.]]) -> kr 750.00
B24: Utgifter | C24: Mat | D24: kr 400.00 | E24: kr 500.00 | F24: kr 450.00 | G24: kr 400.00 | H24: kr 450.00 | I24: kr 425.00 | P24: =SUM(Månedlig[[#This Row],[Jan.]:[Des.]]) -> kr 2,625.00
B25: Utgifter | C25: Klær | D25: kr 50.00 | E25: kr 75.00 | F25: kr 100.00 | G25: kr 75.00 | H25: kr 125.00 | I25: kr 75.00 | P25: =SUM(Månedlig[[#This Row],[Jan.]:[Des.]]) -> kr 500.00
B26: Utgifter | C26: Tannlege | D26: kr 50.00 | E26: kr 10.00 | F26: kr 25.00 | G26: kr 25.00 | H26: kr 20.00 | I26: kr 70.00 | P26: =SUM(Månedlig[[#This Row],[Jan.]:[Des.]]) -> kr 200.00
B27: Utgifter | C27: Buss | D27: kr 30.00 | E27: kr 30.00 | F27: kr 30.00 | G27: kr 20.00 | H27: kr 30.00 | I27: kr 30.00 | P27: =SUM(Månedlig[[#This Row],[Jan.]:[Des.]]) -> kr 170.00
B28: Utgifter | C28: Annet 2 | D28: kr 0.00 | E28: kr 0.00 | F28: kr 0.00 | G28: kr 0.00 | H28: kr 0.00 | I28: kr 0.00 | P28: =SUM(Månedlig[[#This Row],[Jan.]:[Des.]]) -> kr 0.00
B29: Utgifter | C29: Annet 3 | D29: kr 0.00 | E29: kr 0.00 | F29: kr 0.00 | G29: kr 0.00 | H29: kr 0.00 | I29: kr 0.00 | P29: =SUM(Månedlig[[#This Row],[Jan.]:[Des.]]) -> kr 0.00
B30: Utgifter | C30: Annet 4 | D30: kr 0.00 | E30: kr 0.00 | F30: kr 0.00 | G30: kr 0.00 | H30: kr 0.00 | I30: kr 0.00 | P30: =SUM(Månedlig[[#This Row],[Jan.]:[Des.]]) -> kr 0.00
B31: Vilkårlig | C31: Spise ute | D31: kr 50.00 | E31: kr 150.00 | F31: kr 100.00 | G31: kr 50.00 | H31: kr 150.00 | I31: kr 100.00 | P31: =SUM(Månedlig[[#This Row],[Jan.]:[Des.]]) -> kr 600.00
B32: Vilkårlig | C32: Gaver | D32: kr 25.00 | E32: kr 75.00 | F32: kr 50.00 | G32: kr 25.00 | H32: kr 75.00 | I32: kr 50.00 | P32: =SUM(Månedlig[[#This Row],[Jan.]:[Des.]]) -> kr 300.00
B33: Vilkårlig | C33: Reise | D33: kr 0.00 | E33: kr 0.00 | F33: kr 1,000.00 | G33: kr 0.00 | H33: kr 0.00 | I33: kr 1,000.00 | P33: =SUM(Månedlig[[#This Row],[Jan.]:[Des.]]) -> kr 2,000.00
B34: Vilkårlig | C34: Underholdning | D34: kr 50.00 | E34: kr 150.00 | F34: kr 100.00 | G34: kr 50.00 | H34: kr 150.00 | I34: kr 100.00 | P34: =SUM(Månedlig[[#This Row],[Jan.]:[Des.]]) -> kr 600.00
B35: Vilkårlig | C35: Personlig pleie | D35: kr 15.00 | E35: kr 25.00 | F35: kr 35.00 | G35: kr 15.00 | H35: kr 25.00 | I35: kr 35.00 | P35: =SUM(Månedlig[[#This Row],[Jan.]:[Des.]]) -> kr 150.00
B36: Vilkårlig | C36: Shopping | D36: kr 100.00 | E36: kr 200.00 | F36: kr 150.00 | G36: kr 175.00 | H36: kr 150.00 | I36: kr 175.00 | P36: =SUM(Månedlig[[#This Row],[Jan.]:[Des.]]) -> kr 950.00
B37: Vilkårlig | C37: Veldedighet | D37: kr 50.00 | E37: kr 50.00 | F37: kr 50.00 | G37: kr 50.00 | H37: kr 50.00 | I37: kr 50.00 | P37: =SUM(Månedlig[[#This Row],[Jan.]:[Des.]]) -> kr 300.00
B38: Vilkårlig | C38: Klubber/medlemskap | D38: kr 25.00 | E38: kr 25.00 | F38: kr 25.00 | G38: kr 25.00 | H38: kr 25.00 | I38: kr 25.00 | P38: =SUM(Månedlig[[#This Row],[Jan.]:[Des.]]) -> kr 150.00
B39: Vilkårlig | C39: Oppussing | D39: kr 400.00 | E39: kr 400.00 | F39: kr 400.00 | G39: kr 400.00 | H39: kr 400.00 | I39: kr 400.00 | P39: =SUM(Månedlig[[#This Row],[Jan.]:[Des.]]) -> kr 2,400.00
B40: Vilkårlig | C40: Annet 1 | D40: kr 0.00 | E40: kr 0.00 | F40: kr 0.00 | G40: kr 0.00 | H40: kr 0.00 | I40: kr 0.00 | P40: =SUM(Månedlig[[#This Row],[Jan.]:[Des.]]) -> kr 0.00
B41: Vilkårlig | C41: Annet 2 | D41: kr 0.00 | E41: kr 0.00 | F41: kr 0.00 | G41: kr 0.00 | H41: kr 0.00 | I41: kr 0.00 | P41: =SUM(Månedlig[[#This Row],[Jan.]:[Des.]]) -> kr 0.00
B42: Sparing | C42: Kontantbeholdning | D42: kr 416.67 | E42: kr 416.67 | F42: kr 416.67 | G42: kr 416.67 | H42: kr 416.67 | I42: kr 416.67 | P42: =SUM(Månedlig[[#This Row],[Jan.]:[Des.]]) -> kr 2,500.00
B43: Sparing | C43: Pensjonssparing | D43: kr 1,000.00 | E43: kr 1,000.00 | F43: kr 1,000.00 | G43: kr 1,000.00 | H43: kr 1,000.00 | I43: kr 1,000.00 | P43: =SUM(Månedlig[[#This Row],[Jan.]:[Des.]]) -> kr 6,000.00
B44: Sparing | C44: Spare-/investeringskonto | D44: kr 500.00 | E44: kr 500.00 | F44: kr 500.00 | G44: kr 500.00 | H44: kr 500.00 | I44: kr 500.00 | P44: =SUM(Månedlig[[#This Row],[Jan.]:[Des.]]) -> kr 3,000.00
B45: Sparing | C45: Annet 1 | D45: kr 0.00 | E45: kr 0.00 | F45: kr 0.00 | G45: kr 0.00 | H45: kr 0.00 | I45: kr 0.00 | P45: =SUM(Månedlig[[#This Row],[Jan.]:[Des.]]) -> kr 0.00
B46: Sparing | C46: Annet 2 | D46: kr 0.00 | E46: kr 0.00 | F46: kr 0.00 | G46: kr 0.00 | H46: kr 0.00 | I46: kr 0.00 | P46: =SUM(Månedlig[[#This Row],[Jan.]:[Des.]]) -> kr 0.00
B47: Totalt | D47: =SUMIF(Månedlig[Type],"Inntekter",Månedlig[Jan.])-SUMIF(Månedlig[Type],"<>Inntekter",Månedlig[Jan.]) -> kr 3,692.50 | E47: =SUMIF(Månedlig[Type],"Inntekter",Månedlig[Feb.])-SUMIF(Månedlig[Type],"<>Inntekter",Månedlig[Feb.]) -> kr 3,247.50 | F47: =SUMIF(Månedlig[Type],"Inntekter",Månedlig[Mars])-SUMIF(Månedlig[Type],"<>Inntekter",Månedlig[Mars]) -> kr 2,522.50 | G47: =SUMIF(Månedlig[Type],"Inntekter",Månedlig[April])-SUMIF(Månedlig[Type],"<>Inntekter",Månedlig[April]) -> kr 3,427.50 | H47: =SUMIF(Månedlig[Type],"Inntekter",Månedlig[Mai])-SUMIF(Månedlig[Type],"<>Inntekter",Månedlig[Mai]) -> kr 2,887.50 | I47: =SUMIF(Månedlig[Type],"Inntekter",Månedlig[Juni])-SUMIF(Månedlig[Type],"<>Inntekter",Månedlig[Juni]) -> kr 2,602.50 | J47: =SUMIF(Månedlig[Type],"Inntekter",Månedlig[Juli])-SUMIF(Månedlig[Type],"<>Inntekter",Månedlig[Juli]) -> kr 0.00 | K47: =SUMIF(Månedlig[Type],"Inntekter",Månedlig[Aug.])-SUMIF(Månedlig[Type],"<>Inntekter",Månedlig[Aug.]) -> kr 0.00 | L47: =SUMIF(Månedlig[Type],"Inntekter",Månedlig[Sep.])-SUMIF(Månedlig[Type],"<>Inntekter",Månedlig[Sep.]) -> kr 0.00 | M47: =SUMIF(Månedlig[Type],"Inntekter",Månedlig[Okt.])-SUMIF(Månedlig[Type],"<>Inntekter",Månedlig[Okt.]) -> kr 0.00 | N47: =SUMIF(Månedlig[Type],"Inntekter",Månedlig[Nov.])-SUMIF(Månedlig[Type],"<>Inntekter",Månedlig[Nov.]) -> kr 0.00 | O47: =SUMIF(Månedlig[Type],"Inntekter",Månedlig[Des.])-SUMIF(Månedlig[Type],"<>Inntekter",Månedlig[Des.]) -> kr 0.00 | P47: =SUMIF(Månedlig[Type],"Inntekter",Månedlig[Totalt])-SUMIF(Månedlig[Type],"<>Inntekter",Månedlig[Totalt]) -> kr 18,380.00

Sheet Daglig sammendrag
B1: PERSONLIG KONTANTSTRØM | F1: VEILEDNING | G1: MÅNEDLIG KONTANTSTRØM | H1: DAGLIG SAMMENDRAG | I1: INNTEKTER
B2: Tilgjengelige kontanter totalt: | D2: =DailyCashFlow -> kr 577.84 | F2: OBS! Hvis du vil legge til daglige elementer i tabellen, beregner du det månedlige beløpet og plasserer denne verdien i den aktuelle månedskolonnen.
B3: DAGLIG SAMMENDRAG
B4: TOTALER | C4: Daglig | D4: Månedlig | E4: Årlig
B5: Inntekter | C5: =SUMIF(Daglig[Type],$B5,Daglig[Daglig]) -> kr 342.47 | D5: =SUMIF(Daglig[Type],$B5,Daglig[Månedlig]) -> kr 10,416.80 | E5: =SUMIF(Daglig[Type],$B5,Daglig[Årlig]) -> kr 125,001.55
B6: Utgifter | C6: =SUMIF(Daglig[Type],$B6,Daglig[Daglig]) -> kr 136.06 | D6: =SUMIF(Daglig[Type],$B6,Daglig[Månedlig]) -> kr 4,138.49 | E6: =SUMIF(Daglig[Type],$B6,Daglig[Årlig]) -> kr 49,661.90
B7: Vilkårlig | C7: =SUMIF(Daglig[Type],$B7,Daglig[Daglig]) -> kr 36.29 | D7: =SUMIF(Daglig[Type],$B7,Daglig[Månedlig]) -> kr 1,103.82 | E7: =SUMIF(Daglig[Type],$B7,Daglig[Årlig]) -> kr 13,245.85
B8: Sparing | C8: =SUMIF(Daglig[Type],$B8,Daglig[Daglig]) -> kr 63.02 | D8: =SUMIF(Daglig[Type],$B8,Daglig[Månedlig]) -> kr 1,916.86 | E8: =SUMIF(Daglig[Type],$B8,Daglig[Årlig]) -> kr 23,002.30
B9: Type | C9: Beskrivelse | D9: Daglig | E9: Månedlig | F9: Årlig
B10: Inntekter | C10: Lønn | D10: kr 246.58 | E10: =Daglig[[#This Row],[Årlig]]/12 -> kr 7,500.14 | F10: =Daglig[[#This Row],[Daglig]]*365 -> kr 90,001.70
B11: Inntekter | C11: Provisjon/bonus | D11: kr 13.70 | E11: =Daglig[[#This Row],[Årlig]]/12 -> kr 416.71 | F11: =Daglig[[#This Row],[Daglig]]*365 -> kr 5,000.50
B12: Inntekter | C12: Annet 1 | D12: kr 82.19 | E12: =Daglig[[#This Row],[Årlig]]/12 -> kr 2,499.95 | F12: =Daglig[[#This Row],[Daglig]]*365 -> kr 29,999.35
B13: Inntekter | C13: Annet 2 | D13: kr 0.00 | E13: =Daglig[[#This Row],[Årlig]]/12 -> kr 0.00 | F13: =Daglig[[#This Row],[Daglig]]*365 -> kr 0.00
B14: Inntekter | C14: Annet 3 | D14: kr 0.00 | E14: =Daglig[[#This Row],[Årlig]]/12 -> kr 0.00 | F14: =Daglig[[#This Row],[Daglig]]*365 -> kr 0.00
B15: Inntekter | C15: Annet 4 | D15: kr 0.00 | E15: =Daglig[[#This Row],[Årlig]]/12 -> kr 0.00 | F15: =Daglig[[#This Row],[Daglig]]*365 -> kr 0.00
B16: Utgifter | C16: Helseforsikring | D16: kr 41.10 | E16: =Daglig[[#This Row],[Årlig]]/12 -> kr 1,250.13 | F16: =Daglig[[#This Row],[Daglig]]*365 -> kr 15,001.50
B17: Utgifter | C17: Inntektsskatt | D17: kr 6.85 | E17: =Daglig[[#This Row],[Årlig]]/12 -> kr 208.35 | F17: =Daglig[[#This Row],[Daglig]]*365 -> kr 2,500.25
B18: Utgifter | C18: Skatt/avgifter for bil | D18: kr 0.55 | E18: =Daglig[[#This Row],[Årlig]]/12 -> kr 16.73 | F18: =Daglig[[#This Row],[Daglig]]*365 -> kr 200.75
B19: Utgifter | C19: Billån | D19: kr 10.96 | E19: =Daglig[[#This Row],[Årlig]]/12 -> kr 333.37 | F19: =Daglig[[#This Row],[Daglig]]*365 -> kr 4,000.40
B20: Utgifter | C20: Huslån/leie | D20: kr 41.10 | E20: =Daglig[[#This Row],[Årlig]]/12 -> kr 1,250.13 | F20: =Daglig[[#This Row],[Daglig]]*365 -> kr 15,001.50
B21: Utgifter | C21: Forsikring | D21: kr 0.68 | E21: =Daglig[[#This Row],[Årlig]]/12 -> kr 20.68 | F21: =Daglig[[#This Row],[Daglig]]*365 -> kr 248.20
B22: Utgifter | C22: Strøm | D22: kr 3.29 | E22: =Daglig[[#This Row],[Årlig]]/12 -> kr 100.07 | F22: =Daglig[[#This Row],[Daglig]]*365 -> kr 1,200.85
B23: Utgifter | C23: Gass | D23: kr 1.64 | E23: =Daglig[[#This Row],[Årlig]]/12 -> kr 49.88 | F23: =Daglig[[#This Row],[Daglig]]*365 -> kr 598.60
B24: Utgifter | C24: Vann | D24: kr 1.64 | E24: =Daglig[[#This Row],[Årlig]]/12 -> kr 49.88 | F24: =Daglig[[#This Row],[Daglig]]*365 -> kr 598.60
B25: Utgifter | C25: Kloakk | D25: kr 0.82 | E25: =Daglig[[#This Row],[Årlig]]/12 -> kr 24.94 | F25: =Daglig[[#This Row],[Daglig]]*365 -> kr 299.30
B26: Utgifter | C26: Søppel | D26: kr 0.41 | E26: =Daglig[[#This Row],[Årlig]]/12 -> kr 12.47 | F26: =Daglig[[#This Row],[Daglig]]*365 -> kr 149.65
B27: Utgifter | C27: Telefon | D27: kr 1.64 | E27: =Daglig[[#This Row],[Årlig]]/12 -> kr 49.88 | F27: =Daglig[[#This Row],[Daglig]]*365 -> kr 598.60
B28: Utgifter | C28: Internett | D28: kr 1.64 | E28: =Daglig[[#This Row],[Årlig]]/12 -> kr 49.88 | F28: =Daglig[[#This Row],[Daglig]]*365 -> kr 598.60
B29: Utgifter | C29: Livsforsikring | D29: kr 4.11 | E29: =Daglig[[#This Row],[Årlig]]/12 -> kr 125.01 | F29: =Daglig[[#This Row],[Daglig]]*365 -> kr 1,500.15
B30: Utgifter | C30: Mat | D30: kr 13.70 | E30: =Daglig[[#This Row],[Årlig]]/12 -> kr 416.71 | F30: =Daglig[[#This Row],[Daglig]]*365 -> kr 5,000.50
B31: Utgifter | C31: Klær | D31: kr 3.29 | E31: =Daglig[[#This Row],[Årlig]]/12 -> kr 100.07 | F31: =Daglig[[#This Row],[Daglig]]*365 -> kr 1,200.85
B32: Utgifter | C32: Tannlege | D32: kr 1.64 | E32: =Daglig[[#This Row],[Årlig]]/12 -> kr 49.88 | F32: =Daglig[[#This Row],[Daglig]]*365 -> kr 598.60
B33: Utgifter | C33: Buss | D33: kr 1.00 | E33: =Daglig[[#This Row],[Årlig]]/12 -> kr 30.42 | F33: =Daglig[[#This Row],[Daglig]]*365 -> kr 365.00
B34: Utgifter | C34: Annet 2 | D34: kr 0.00 | E34: =Daglig[[#This Row],[Årlig]]/12 -> kr 0.00 | F34: =Daglig[[#This Row],[Daglig]]*365 -> kr 0.00
B35: Utgifter | C35: Annet 3 | D35: kr 0.00 | E35: =Daglig[[#This Row],[Årlig]]/12 -> kr 0.00 | F35: =Daglig[[#This Row],[Daglig]]*365 -> kr 0.00
B36: Utgifter | C36: Annet 4 | D36: kr 0.00 | E36: =Daglig[[#This Row],[Årlig]]/12 -> kr 0.00 | F36: =Daglig[[#This Row],[Daglig]]*365 -> kr 0.00
B37: Vilkårlig | C37: Spise ute | D37: kr 3.29 | E37: =Daglig[[#This Row],[Årlig]]/12 -> kr 100.07 | F37: =Daglig[[#This Row],[Daglig]]*365 -> kr 1,200.85
B38: Vilkårlig | C38: Gaver | D38: kr 1.64 | E38: =Daglig[[#This Row],[Årlig]]/12 -> kr 49.88 | F38: =Daglig[[#This Row],[Daglig]]*365 -> kr 598.60
B39: Vilkårlig | C39: Reise | D39: kr 6.16 | E39: =Daglig[[#This Row],[Årlig]]/12 -> kr 187.37 | F39: =Daglig[[#This Row],[Daglig]]*365 -> kr 2,248.40
B40: Vilkårlig | C40: Underholdning | D40: kr 3.29 | E40: =Daglig[[#This Row],[Årlig]]/12 -> kr 100.07 | F40: =Daglig[[#This Row],[Daglig]]*365 -> kr 1,200.85
B41: Vilkårlig | C41: Personlig pleie | D41: kr 0.82 | E41: =Daglig[[#This Row],[Årlig]]/12 -> kr 24.94 | F41: =Daglig[[#This Row],[Daglig]]*365 -> kr 299.30
B42: Vilkårlig | C42: Shopping | D42: kr 5.48 | E42: =Daglig[[#This Row],[Årlig]]/12 -> kr 166.68 | F42: =Daglig[[#This Row],[Daglig]]*365 -> kr 2,000.20
B43: Vilkårlig | C43: Veldedighet | D43: kr 1.64 | E43: =Daglig[[#This Row],[Årlig]]/12 -> kr 49.88 | F43: =Daglig[[#This Row],[Daglig]]*365 -> kr 598.60
B44: Vilkårlig | C44: Klubber/medlemskap | D44: kr 0.82 | E44: =Daglig[[#This Row],[Årlig]]/12 -> kr 24.94 | F44: =Daglig[[#This Row],[Daglig]]*365 -> kr 299.30
B45: Vilkårlig | C45: Oppussing | D45: kr 13.15 | E45: =Daglig[[#This Row],[Årlig]]/12 -> kr 399.98 | F45: =Daglig[[#This Row],[Daglig]]*365 -> kr 4,799.75
B46: Vilkårlig | C46: Annet 1 | D46: kr 0.00 | E46: =Daglig[[#This Row],[Årlig]]/12 -> kr 0.00 | F46: =Daglig[[#This Row],[Daglig]]*365 -> kr 0.00
B47: Vilkårlig | C47: Annet 2 | D47: kr 0.00 | E47: =Daglig[[#This Row],[Årlig]]/12 -> kr 0.00 | F47: =Daglig[[#This Row],[Daglig]]*365 -> kr 0.00
B48: Sparing | C48: Kontantbeholdning | D48: kr 13.70 | E48: =Daglig[[#This Row],[Årlig]]/12 -> kr 416.71 | F48: =Daglig[[#This Row],[Daglig]]*365 -> kr 5,000.50
B49: Sparing | C49: Pensjonssparing | D49: kr 32.88 | E49: =Daglig[[#This Row],[Årlig]]/12 -> kr 1,000.10 | F49: =Daglig[[#This Row],[Daglig]]*365 -> kr 12,001.20
B50: Sparing | C50: Spare-/investeringskonto | D50: kr 16.44 | E50: =Daglig[[#This Row],[Årlig]]/12 -> kr 500.05 | F50: =Daglig[[#This Row],[Daglig]]*365 -> kr 6,000.60
B51: Sparing | C51: Annet 1 | D51: kr 0.00 | E51: =Daglig[[#This Row],[Årlig]]/12 -> kr 0.00 | F51: =Daglig[[#This Row],[Daglig]]*365 -> kr 0.00
B52: Sparing | C52: Annet 2 | D52: kr 0.00 | E52: =Daglig[[#This Row],[Årlig]]/12 -> kr 0.00 | F52: =Daglig[[#This Row],[Daglig]]*365 -> kr 0.00
B53: Totalt | D53: =SUMIF(Daglig[Type],"Inntekter",Daglig[Daglig])-SUMIF(Daglig[Type],"<>Inntekter",Daglig[Daglig]) -> kr 107.10 | E53: =SUMIF(Daglig[Type],"Inntekter",Daglig[Månedlig])-SUMIF(Daglig[Type],"<>Inntekter",Daglig[Månedlig]) -> kr 3,257.63 | F53: =SUMIF(Daglig[Type],"Inntekter",Daglig[Årlig])-SUMIF(Daglig[Type],"<>Inntekter",Daglig[Årlig]) -> kr 39,091.50

Sheet Inntekter
B1: PERSONLIG KONTANTSTRØM | F1: VEILEDNING | G1: DAGLIG SAMMENDRAG | H1: INNTEKTER | I1: UTGIFTER
B2: Total kontantstrøm hittil: | D2: =AnnualCashFlowToDate -> kr 39,750.00 | F2: Dette er et årlig estimat. Bruk dette regnearket hvis du vil vise årlige beløp med beregnede månedlige verdier. Hvis du vil legge til daglige elementer i tabellene, beregner du det årlige beløpet og plasserer denne verdien i årskolonnen.
B3: Inntekter | C3: Årlig | D3: Månedlig
B4: Lønn | C4: kr 90,000.00 | D4: =Inntekter[[#This Row],[Årlig ]]/12 -> kr 7,500.00
B5: Provisjon/bonus | C5: kr 5,000.00 | D5: =Inntekter[[#This Row],[Årlig ]]/12 -> kr 416.67
B6: Annet 1 | C6: kr 30,000.00 | D6: =Inntekter[[#This Row],[Årlig ]]/12 -> kr 2,500.00
B7: Annet 2 | D7: =Inntekter[[#This Row],[Årlig ]]/12 -> kr 0.00
B8: Annet 3 | D8: =Inntekter[[#This Row],[Årlig ]]/12 -> kr 0.00
B9: Annet 4 | D9: =Inntekter[[#This Row],[Årlig ]]/12 -> kr 0.00
B10: Totalt | C10: =SUBTOTAL(109,Inntekter[[Årlig ]]) -> kr 125,000.00 | D10: =SUBTOTAL(109,Inntekter[[Månedlig ]]) -> kr 10,416.67

Sheet Utgifter
B1: PERSONLIG KONTANTSTRØM | F1: VEILEDNING | G1: INNTEKTER | H1: UTGIFTER | I1: VILKÅRLIG
B2: Total kontantstrøm hittil: | D2: =AnnualCashFlowToDate -> kr 39,750.00 | F2: Dette er et årlig estimat. Bruk dette regnearket hvis du vil vise årlige beløp med beregnede månedlige verdier. Hvis du vil legge til daglige elementer i tabellene, beregner du det årlige beløpet og plasserer denne verdien i årskolonnen.
B3: Utgifter | C3: Årlig | D3: Månedlig
B4: Helseforsikring | C4: kr 15,000.00 | D4: =Utgifter[[#This Row],[Årlig ]]/12 -> kr 1,250.00
B5: Inntektsskatt | C5: kr 2,500.00 | D5: =Utgifter[[#This Row],[Årlig ]]/12 -> kr 208.33
B6: Skatt/avgifter for bil | C6: kr 200.00 | D6: =Utgifter[[#This Row],[Årlig ]]/12 -> kr 16.67
B7: Billån | C7: kr 4,000.00 | D7: =Utgifter[[#This Row],[Årlig ]]/12 -> kr 333.33
B8: Huslån/leie | C8: kr 15,000.00 | D8: =Utgifter[[#This Row],[Årlig ]]/12 -> kr 1,250.00
B9: Forsikring | C9: kr 250.00 | D9: =Utgifter[[#This Row],[Årlig ]]/12 -> kr 20.83
B10: Strøm | C10: kr 1,200.00 | D10: =Utgifter[[#This Row],[Årlig ]]/12 -> kr 100.00
B11: Gass | C11: kr 600.00 | D11: =Utgifter[[#This Row],[Årlig ]]/12 -> kr 50.00
B12: Vann/kloakk | C12: kr 600.00 | D12: =Utgifter[[#This Row],[Årlig ]]/12 -> kr 50.00
B13: Søppel | C13: kr 150.00 | D13: =Utgifter[[#This Row],[Årlig ]]/12 -> kr 12.50
B14: Telefon | C14: kr 600.00 | D14: =Utgifter[[#This Row],[Årlig ]]/12 -> kr 50.00
B15: Internett | C15: kr 600.00 | D15: =Utgifter[[#This Row],[Årlig ]]/12 -> kr 50.00
B16: Livsforsikring | C16: kr 1,500.00 | D16: =Utgifter[[#This Row],[Årlig ]]/12 -> kr 125.00
B17: Mat | C17: kr 5,000.00 | D17: =Utgifter[[#This Row],[Årlig ]]/12 -> kr 416.67
B18: Klær | C18: kr 1,200.00 | D18: =Utgifter[[#This Row],[Årlig ]]/12 -> kr 100.00
B19: Tannlege | C19: kr 600.00 | D19: =Utgifter[[#This Row],[Årlig ]]/12 -> kr 50.00
B20: Annet 1 | D20: =Utgifter[[#This Row],[Årlig ]]/12 -> kr 0.00
B21: Annet 2 | D21: =Utgifter[[#This Row],[Årlig ]]/12 -> kr 0.00
B22: Totalt | C22: =SUBTOTAL(109,Utgifter[[Årlig ]]) -> kr 49,000.00 | D22: =SUBTOTAL(109,Utgifter[[Månedlig ]]) -> kr 4,083.33

Sheet Vilkårlig
B1: PERSONLIG KONTANTSTRØM | F1: VEILEDNING | G1: UTGIFTER | H1: VILKÅRLIG | I1: SPARING
B2: Total kontantstrøm hittil: | D2: =AnnualCashFlowToDate -> kr 39,750.00 | F2: Dette er et årlig estimat. Bruk dette regnearket hvis du vil vise årlige beløp med beregnede månedlige verdier. Hvis du vil legge til daglige elementer i tabellene, beregner du det årlige beløpet og plasserer denne verdien i årskolonnen.
B3: Vilkårlige utgifter | C3: Årlig | D3: Månedlig
B4: Spise ute | C4: kr 1,200.00 | D4: =Vilkårlig[[#This Row],[Årlig ]]/12 -> kr 100.00
B5: Gaver | C5: kr 600.00 | D5: =Vilkårlig[[#This Row],[Årlig ]]/12 -> kr 50.00
B6: Reise | C6: kr 2,250.00 | D6: =Vilkårlig[[#This Row],[Årlig ]]/12 -> kr 187.50
B7: Underholdning | C7: kr 1,200.00 | D7: =Vilkårlig[[#This Row],[Årlig ]]/12 -> kr 100.00
B8: Personlig pleie | C8: kr 300.00 | D8: =Vilkårlig[[#This Row],[Årlig ]]/12 -> kr 25.00
B9: Shopping | C9: kr 2,000.00 | D9: =Vilkårlig[[#This Row],[Årlig ]]/12 -> kr 166.67
B10: Veldedighet | C10: kr 600.00 | D10: =Vilkårlig[[#This Row],[Årlig ]]/12 -> kr 50.00
B11: Klubber/medlemskap | C11: kr 300.00 | D11: =Vilkårlig[[#This Row],[Årlig ]]/12 -> kr 25.00
B12: Oppussing | C12: kr 4,800.00 | D12: =Vilkårlig[[#This Row],[Årlig ]]/12 -> kr 400.00
B13: Annet 1 | D13: =Vilkårlig[[#This Row],[Årlig ]]/12 -> kr 0.00
B14: Annet 2 | D14: =Vilkårlig[[#This Row],[Årlig ]]/12 -> kr 0.00
B15: Totalt | C15: =SUBTOTAL(109,Vilkårlig[[Årlig ]]) -> kr 13,250.00 | D15: =SUBTOTAL(109,Vilkårlig[[Månedlig ]]) -> kr 1,104.17

Sheet Sparing
B1: PERSONLIG KONTANTSTRØM | F1: VEILEDNING | G1: VILKÅRLIG | H1: SPARING
B2: Total kontantstrøm hittil: | D2: =AnnualCashFlowToDate -> kr 39,750.00 | F2: Dette er et årlig estimat. Bruk dette regnearket hvis du vil vise årlige beløp med beregnede månedlige verdier. Hvis du vil legge til daglige elementer i tabellene, beregner du det årlige beløpet og plasserer denne verdien i årskolonnen.
B3: Sparing | C3: Årlig | D3: Månedlig
B4: Kontantbeholdning | C4: kr 5,000.00 | D4: =Sparing[[#This Row],[Årlig ]]/12 -> kr 416.67
B5: Pensjonssparing | C5: kr 12,000.00 | D5: =Sparing[[#This Row],[Årlig ]]/12 -> kr 1,000.00
B6: Sparing/investeringer | C6: kr 6,000.00 | D6: =Sparing[[#This Row],[Årlig ]]/12 -> kr 500.00
B7: Annet 1 | D7: =Sparing[[#This Row],[Årlig ]]/12 -> kr 0.00
B8: Annet 2 | D8: =Sparing[[#This Row],[Årlig ]]/12 -> kr 0.00
B9: Totalt | C9: =SUBTOTAL(109,Sparing[[Årlig ]]) -> kr 23,000.00 | D9: =SUBTOTAL(109,Sparing[[Månedlig ]]) -> kr 1,916.67
